bitfinex-derivatives/quotes_BTCF0:USTF0_20241110
["timestamp","ask_amount","ask_price","bid_price","bid_amount"]
[1731252048115,0.0250895,79733.0,79732.0,0.062656]
[1731252048413,0.0250895,79733.0,79723.0,0.1323]
[1731252048414,0.42345,79740.0,79736.0,0.062653]
[1731252048602,0.062652,79737.0,79736.0,0.062653]
[1731252048803,0.09536287,79737.0,79736.0,0.062653]
[1731252049818,0.062652,79737.0,79736.0,0.062653]
[1731252050018,0.09543647,79737.0,79736.0,0.062653]
[1731252050909,0.09543647,79737.0,79731.0,0.08466466]
[1731252051215,0.03278447,79736.0,79735.0,0.062654]
[1731252051413,0.01752645,79740.0,79723.0,0.15012435]
[1731252051609,0.03291595,79739.0,79738.0,0.062651]
[1731252052610,0.17063004,79742.0,79741.0,0.062649]
[1731252052809,0.04315004,79742.0,79741.0,0.062649]
[1731252053006,0.02508308,79742.0,79741.0,0.062649]
[1731252054320,0.02508308,79742.0,79741.0,0.0877302]
[1731252055224,0.08773108,79742.0,79741.0,0.0250812]
[1731252058617,0.02508308,79742.0,79741.0,0.0877302]
[1731252059519,0.01783071,79748.0,79741.0,0.0250812]
[1731252059829,0.12748,79750.0,79742.0,0.0874]
[1731252059830,0.062646,79746.0,79742.0,0.0874]
[1731252060024,0.14536778,79750.0,79742.0,0.0874]
[1731252060220,0.062648,79743.0,79742.0,0.0874]
[1731252060413,0.062648,79742.0,79741.0,0.0250812]
[1731252060738,0.062653,79736.0,79735.0,0.00072]
[1731252060923,0.52113291,79736.0,79723.0,0.0418]
[1731252061119,0.44546466,79729.0,79716.0,0.0413]
[1731252061319,0.062669,79716.0,79705.0,0.0845]
[1731252061527,0.062672,79712.0,79705.0,0.1273]
[1731252062120,0.3608,79713.0,79705.0,0.1273]
[1731252063527,0.3608,79713.0,79706.0,0.062677]
[1731252063735,0.3608,79713.0,79705.0,0.21196466]
[1731252064035,0.08466466,79711.0,79705.0,0.086]
[1731252064224,0.062678,79705.0,79703.0,0.3608]
[1731252064420,0.08466466,79701.0,79694.0,0.3608]
[1731252064628,0.08466466,79701.0,79690.0,0.0867]
[1731252064629,0.062684,79698.0,79690.0,0.0867]
[1731252065031,0.062684,79698.0,79690.0,0.149389]
[1731252065630,0.03760092,79698.0,79691.0,0.062688]
[1731252065827,0.062687,79694.0,79690.0,0.0432]
[1731252066125,0.12748,79693.0,79687.0,0.3608]
[1731252066325,0.062691,79688.0,79679.0,0.0435]
[1731252066521,0.08466466,79689.0,79678.0,0.062698]
[1731252066730,0.062694,79684.0,79673.0,0.062703]
[1731252066933,0.3608,79685.0,79673.0,0.062703]
[1731252067324,0.08466466,79682.0,79668.0,0.04234523]
[1731252067526,0.062699,79678.0,79668.0,0.04234523]
[1731252067735,0.062699,79678.0,79671.0,0.062704]
[1731252067932,0.12752,79681.0,79671.0,0.062704]
[1731252068245,0.3608,79685.0,79683.0,0.062694]
[1731252068930,0.37899712,79685.0,79683.0,0.062694]
[1731252069330,0.01819712,79685.0,79683.0,0.062694]
[1731252069633,0.15262418,79688.0,79683.0,0.062694]
[1731252069934,0.02510418,79688.0,79683.0,0.062694]
[1731252070838,0.10976884,79688.0,79683.0,0.062694]
[1731252071035,0.02510418,79688.0,79683.0,0.062694]
[1731252072336,0.02510418,79688.0,79677.0,0.3608]
[1731252072643,0.02510418,79688.0,79686.0,0.062692]
[1731252072941,0.12752,79695.0,79687.0,0.08466466]
[1731252073129,0.48832,79695.0,79691.0,0.062688]
[1731252073433,0.48832,79695.0,79693.0,0.062686]
[1731252073434,0.3608,79695.0,79693.0,0.062686]
[1731252074435,0.3608,79695.0,79685.0,0.3608]
[1731252074436,0.10976884,79694.0,79686.0,0.062692]
[1731252074628,0.10976884,79694.0,79685.0,0.423493]
[1731252074629,0.062688,79692.0,79685.0,0.423493]
[1731252074827,0.10976884,79694.0,79685.0,0.3608]
[1731252075236,0.02510418,79694.0,79688.0,0.06269]
[1731252075534,0.02510418,79694.0,79692.0,0.062687]
[1731252077636,0.02510418,79694.0,79692.0,0.06238701]
[1731252081740,0.02510418,79694.0,79685.0,0.3608]
[1731252081950,0.08466466,79689.0,79688.0,0.062691]
[1731252082252,0.08466466,79689.0,79685.0,0.3608]
[1731252082253,0.02510418,79694.0,79693.0,0.062687]
[1731252085052,0.02510418,79694.0,79685.0,0.3608]
[1731252085344,0.02510418,79694.0,79692.0,0.062687]
[1731252087650,0.10976884,79694.0,79692.0,0.062687]
[1731252088249,0.02510418,79694.0,79692.0,0.062687]
[1731252088752,0.02510418,79694.0,79685.0,0.3608]
[1731252088753,0.02510418,79701.0,79697.0,0.062684]
[1731252088955,0.13251368,79711.0,79710.0,0.062674]
[1731252089151,0.13251368,79711.0,79700.0,0.3608]
[1731252089152,0.12616,79711.0,79703.0,0.062678]
[1731252089340,0.08466466,79707.0,79703.0,0.062678]
[1731252089543,0.0062038,79709.0,79698.0,0.1262]
[1731252089739,0.12616,79713.0,79707.0,0.062675]
[1731252089947,0.062675,79709.0,79698.0,0.1262]
[1731252090147,0.06904819,79709.0,79698.0,0.1262]
[1731252090448,0.00637319,79709.0,79707.0,0.062676]
[1731252090651,0.12616,79713.0,79708.0,0.062674]
[1731252090852,0.02509377,79711.0,79708.0,0.062674]
[1731252091054,0.02509377,79711.0,79700.0,0.3608]
[1731252091250,0.02509377,79711.0,79708.0,0.062675]
[1731252091552,0.02509377,79711.0,79710.0,0.062674]
[1731252091951,0.05580747,79711.0,79710.0,0.062674]
[1731252093156,0.05579504,79711.0,79710.0,0.062674]
[1731252093352,0.02509377,79711.0,79710.0,0.062674]
[1731252093554,0.02509377,79711.0,79705.0,0.062677]
[1731252093755,0.02509377,79711.0,79707.0,0.062676]
[1731252093954,0.05579503,79711.0,79708.0,0.062675]
[1731252094157,0.05579503,79711.0,79709.0,0.062674]
[1731252094958,0.05579503,79711.0,79710.0,0.062674]
[1731252095155,2.6e-07,79711.0,79710.0,0.784274]
[1731252095354,2.6e-07,79711.0,79710.0,1.160634]
[1731252095547,0.48696,79733.0,79710.0,1.09796]
[1731252095752,0.36268235,79723.0,79722.0,0.062664]
[1731252096050,0.42534535,79723.0,79722.0,0.062664]
[1731252096246,0.36268235,79723.0,79722.0,0.062664]
[1731252096453,0.00188235,79723.0,79722.0,0.062664]
[1731252097654,0.4432,79742.0,79733.0,0.062655]
[1731252097853,0.01813784,79739.0,79733.0,0.423455]
[1731252098053,0.01813784,79739.0,79733.0,0.14731966]
[1731252098264,0.01813784,79739.0,79733.0,0.50811966]
[1731252098446,0.02509377,79738.0,79733.0,0.14731966]
[1731252098951,0.02509377,79738.0,79733.0,0.50811966]
[1731252099850,0.02509377,79738.0,79733.0,0.423455]
[1731252101957,0.10975843,79738.0,79733.0,0.423455]
[1731252102555,0.063365,79734.0,79733.0,0.062655]
[1731252103652,0.063365,79734.0,79728.0,0.062659]
[1731252103964,0.063365,79734.0,79729.0,0.062658]
[1731252104362,0.063365,79734.0,79732.0,0.062656]
[1731252104662,0.00071,79734.0,79732.0,0.062656]
[1731252105764,0.00071,79734.0,79725.0,0.3608]
[1731252105960,0.00071,79734.0,79733.0,0.062655]
[1731252107061,0.00071,79734.0,79733.0,0.423455]
[1731252107759,0.00071,79734.0,79733.0,0.062655]
[1731252108060,0.062661,79726.0,79725.0,0.3608]
[1731252108262,0.062666,79720.0,79717.0,0.423468]
[1731252108562,0.062666,79720.0,79712.0,0.062672]
[1731252108563,0.062668,79717.0,79712.0,0.062672]
[1731252108763,0.3608,79720.0,79709.0,0.40474]
[1731252108965,0.3608,79720.0,79709.0,0.4041]
[1731252108966,0.062669,79716.0,79709.0,0.4041]
[1731252109264,0.3608,79720.0,79709.0,0.4041]
[1731252109460,0.3782019,79720.0,79716.0,0.062669]
[1731252110058,0.3782019,79720.0,79711.0,0.062673]
[1731252110261,0.08466466,79719.0,79709.0,0.36148]
[1731252110463,0.062667,79718.0,79711.0,0.062673]
[1731252110760,0.062627,79718.0,79711.0,0.062673]
[1731252110961,0.3782019,79720.0,79709.0,0.3608]
[1731252111164,0.0174019,79720.0,79719.0,0.062666]
[1731252111366,0.14437263,79729.0,79712.0,0.08466466]
[1731252111558,0.12612,79729.0,79726.0,0.062661]
[1731252112658,0.188779,79729.0,79726.0,0.062661]
[1731252113271,0.06266,79727.0,79726.0,0.062661]
[1731252113463,0.12612,79729.0,79727.0,0.06266]
[1731252114062,0.12612,79729.0,79722.0,0.062664]
[1731252114261,0.062659,79728.0,79719.0,0.0398]
[1731252114462,0.12612,79729.0,79719.0,0.0398]
[1731252114463,0.12612,79729.0,79724.0,0.062662]
[1731252114661,0.062661,79726.0,79724.0,0.062662]
[1731252115970,0.062661,79726.0,79725.0,0.062662]
[1731252116962,0.06266,79727.0,79719.0,0.0398]
[1731252117268,0.062665,79721.0,79719.0,0.062666]
[1731252117463,0.08466466,79726.0,79722.0,0.062664]
[1731252117673,0.14732566,79726.0,79722.0,0.062664]
[1731252118065,0.062662,79725.0,79722.0,0.062664]
[1731252118260,0.02508724,79728.0,79724.0,0.062663]
[1731252118463,0.03092914,79727.0,79711.0,0.08466466]
[1731252118662,0.02508724,79728.0,79711.0,0.08466466]
[1731252118970,0.062661,79726.0,79711.0,0.08466466]
[1731252119161,0.02508724,79728.0,79711.0,0.08466466]
[1731252119366,0.062662,79725.0,79721.0,0.062665]
[1731252119671,0.062659,79729.0,79717.0,0.062668]
[1731252119870,0.03115189,79728.0,79726.0,0.06266]
[1731252120065,0.062659,79729.0,79727.0,0.06266]
[1731252120367,0.37845152,79730.0,79727.0,0.06266]
[1731252120577,0.37845152,79730.0,79722.0,0.062664]
[1731252120771,0.062661,79726.0,79722.0,0.062664]
[1731252121076,0.062661,79726.0,79716.0,0.3608]
[1731252121569,0.062661,79726.0,79724.0,0.062662]
[1731252121972,0.062668,79717.0,79716.0,0.3608]
[1731252122273,0.062668,79717.0,79710.0,0.044]
[1731252122467,0.3608,79723.0,79714.0,0.06267]
[1731252122774,0.08466466,79719.0,79710.0,0.044]
[1731252122965,0.08466466,79711.0,79701.0,0.0398]
[1731252123166,0.062679,79703.0,79701.0,0.0398]
[1731252123369,0.062679,79703.0,79700.0,0.36148]
[1731252123572,0.062679,79703.0,79700.0,0.3608]
[1731252124071,0.00632727,79702.0,79700.0,0.3608]
[1731252124276,0.06900727,79702.0,79700.0,0.3608]
[1731252124469,0.06268,79702.0,79698.0,0.062683]
[1731252124876,0.3608,79708.0,79696.0,0.3608]
[1731252125173,0.37882498,79708.0,79700.0,0.062681]
[1731252125364,0.37882498,79708.0,79694.0,0.0408]
[1731252125365,0.3608,79701.0,79694.0,0.0408]
[1731252125567,0.08466466,79698.0,79684.0,0.3608]
[1731252125766,0.08466466,79685.0,79675.0,0.062701]
[1731252125978,0.08466466,79692.0,79677.0,0.3608]
[1731252126162,0.3608,79694.0,79677.0,0.44546466]
[1731252126371,0.12608,79693.0,79686.0,0.062692]
[1731252126567,0.38589313,79701.0,79691.0,0.3608]
[1731252126875,0.38589313,79701.0,79692.0,0.146687]
[1731252127264,0.02509313,79701.0,79698.0,0.3608]
[1731252127868,0.01807315,79713.0,79709.0,0.062674]
[1731252128068,0.3608,79720.0,79712.0,0.08466466]
[1731252128069,0.12612,79719.0,79712.0,0.08466466]
[1731252128369,0.12612,79719.0,79715.0,0.062669]
[1731252130175,0.12612,79719.0,79716.0,0.062668]
[1731252130573,0.02509313,79720.0,79716.0,0.062668]
[1731252132181,0.08466466,79717.0,79713.0,0.0825]
[1731252132681,0.08466466,79717.0,79713.0,0.145171]
[1731252132976,0.02509313,79720.0,79719.0,0.062666]
[1731252134184,0.37878567,79722.0,79721.0,0.062665]
[1731252134492,0.02509313,79733.0,79720.0,0.3608]
[1731252134689,0.37829142,79732.0,79729.0,0.062658]
[1731252134979,0.37829142,79732.0,79723.0,0.062663]
[1731252135176,0.062659,79729.0,79723.0,0.062663]
[1731252135377,0.37829142,79732.0,79723.0,0.062663]
[1731252135573,0.3608,79725.0,79717.0,0.062667]
[1731252135789,0.062666,79720.0,79714.0,0.0398]
[1731252135992,0.062667,79719.0,79714.0,0.0398]
[1731252136171,0.062667,79718.0,79713.0,0.4433]
[1731252136588,0.48688,79725.0,79713.0,0.3608]
[1731252136589,0.08466466,79715.0,79713.0,0.3608]
[1731252136883,0.062669,79716.0,79713.0,0.3608]
[1731252137879,0.08466466,79715.0,79713.0,0.3608]
[1731252138271,0.062669,79716.0,79713.0,0.3608]
[1731252138272,0.062629,79716.0,79713.0,0.3608]
[1731252138872,0.14733466,79715.0,79713.0,0.3608]
[1731252139376,0.062676,79708.0,79700.0,0.062681]
[1731252139575,0.062676,79708.0,79702.0,0.062679]
[1731252139988,0.08466466,79703.0,79698.0,0.02509473]
[1731252140177,0.14734466,79703.0,79698.0,0.02509473]
[1731252141180,0.18803966,79709.0,79704.0,0.062678]
[1731252141381,0.03070272,79708.0,79704.0,0.062678]
[1731252141579,0.103375,79709.0,79704.0,0.062678]
[1731252141883,0.103375,79709.0,79698.0,0.02509473]
[1731252142187,0.103375,79709.0,79705.0,0.062677]
[1731252142883,0.3608,79727.0,79705.0,0.08466466]
[1731252143080,0.3608,79727.0,79724.0,0.062663]
[1731252143081,0.423461,79727.0,79724.0,0.062663]
[1731252143387,0.03258141,79725.0,79724.0,0.062663]
[1731252143778,0.00188237,79725.0,79724.0,0.062663]
[1731252144285,0.01819618,79743.0,79742.0,0.062648]
[1731252144483,0.0008,79751.0,79750.0,0.062642]
[1731252144683,0.48688,79761.0,79752.0,0.06264]
[1731252144684,0.062636,79758.0,79752.0,0.06264]
[1731252144883,0.062636,79758.0,79742.0,0.44546466]
[1731252144884,0.09414517,79757.0,79753.0,0.06264]
[1731252145082,0.02509305,79754.0,79753.0,0.06264]
[1731252145677,0.02509305,79754.0,79742.0,0.44546466]
[1731252145678,0.01808557,79760.0,79742.0,0.44546466]
[1731252145886,0.03118993,79759.0,79753.0,0.062639]
[1731252146188,0.12608,79761.0,79753.0,0.062639]
[1731252146384,0.1437124,79761.0,79753.0,0.062639]
[1731252146587,0.1437124,79761.0,79742.0,0.44546466]
[1731252146785,0.03134674,79760.0,79749.0,0.44546466]
[1731252146993,0.12608,79761.0,79758.0,0.062635]
[1731252148281,0.12608,79761.0,79752.0,0.0421]
[1731252148282,0.0803419,79764.0,79760.0,0.062634]
[1731252149992,0.12608,79765.0,79752.0,0.0421]
[1731252150183,0.08466466,79759.0,79752.0,0.104741]
[1731252150494,0.062632,79763.0,79755.0,0.062638]
[1731252150690,0.062631,79764.0,79752.0,0.0421]
[1731252150994,0.2282491,79765.0,79752.0,0.0421]
[1731252151197,0.062637,79756.0,79752.0,0.0421]
[1731252151995,0.08466466,79759.0,79752.0,0.0421]
[1731252152190,0.14358444,79765.0,79751.0,0.3608]
[1731252152191,0.14730466,79753.0,79751.0,0.3608]
[1731252152395,0.06264,79753.0,79751.0,0.3608]
[1731252152694,0.12604,79757.0,79752.0,0.02507774]
[1731252152887,0.423436,79758.0,79752.0,0.08771774]
[1731252153591,0.062637,79757.0,79752.0,0.08771774]
[1731252153796,0.3608,79758.0,79752.0,0.02507774]
[1731252154097,0.06264,79754.0,79752.0,0.02507774]
[1731252156296,0.12604,79753.0,79752.0,0.02507774]
[1731252156995,0.5022,79753.0,79734.0,0.03998113]
[1731252157196,0.062652,79738.0,79734.0,0.03998113]
[1731252157796,0.062653,79736.0,79734.0,0.00188113]
[1731252158390,0.12604,79735.0,79734.0,0.00188113]
[1731252159802,0.50228,79735.0,79726.0,0.00067]
[1731252160002,0.14732466,79727.0,79726.0,0.00067]
[1731252160898,9.155e-05,79726.0,79710.0,0.0381]
[1731252161092,0.08466466,79717.0,79710.0,0.0381]
[1731252161300,0.12604,79718.0,79717.0,0.062667]
[1731252162194,0.12604,79718.0,79710.0,0.0381]
[1731252162501,0.062677,79705.0,79699.0,0.3608]
[1731252163593,0.062674,79710.0,79705.0,0.062677]
[1731252163801,0.37889726,79714.0,79703.0,0.08466466]
[1731252164097,0.3608,79714.0,79703.0,0.08466466]
[1731252164301,0.423471,79714.0,79708.0,0.062675]
[1731252164705,0.423471,79714.0,79699.0,0.3608]
[1731252164904,0.062672,79713.0,79708.0,0.062675]
[1731252165903,0.3608,79714.0,79699.0,0.3608]
[1731252166103,0.3608,79714.0,79712.0,0.062672]
[1731252166504,0.423471,79714.0,79712.0,0.062672]
[1731252167206,0.062671,79714.0,79713.0,0.062671]
[1731252167402,0.01790461,79716.0,79714.0,0.06267]
[1731252167608,0.188707,79718.0,79714.0,0.06267]
[1731252167905,0.3608,79718.0,79715.0,0.062669]
[1731252168206,0.062669,79716.0,79715.0,0.062669]
[1731252168706,0.0877602,79716.0,79715.0,0.062669]
[1731252168902,0.0250912,79716.0,79715.0,0.062669]
[1731252169693,0.062672,79712.0,79709.0,0.101574]
[1731252169895,0.062674,79711.0,79709.0,0.062674]
[1731252170100,0.062674,79709.0,79708.0,0.3608]
[1731252170706,0.062674,79709.0,79692.0,0.3608]
[1731252170707,0.062682,79700.0,79692.0,0.3608]
[1731252171014,0.062682,79700.0,79698.0,0.08777773]
[1731252171699,0.21074466,79704.0,79699.0,0.062682]
[1731252171907,0.12608,79704.0,79699.0,0.062682]
[1731252172210,0.062681,79701.0,79699.0,0.062682]
[1731252173110,0.062681,79701.0,79698.0,0.02509473]
[1731252173613,0.062682,79700.0,79698.0,0.02509473]
[1731252174303,0.1438342,79704.0,79698.0,0.02509473]
[1731252174507,0.062682,79699.0,79698.0,0.02509473]
[1731252175212,0.2065122,79704.0,79698.0,0.08777773]
[1731252175407,0.062679,79703.0,79698.0,0.08777773]
[1731252175607,0.1438342,79704.0,79698.0,0.08777773]
[1731252176008,0.062682,79700.0,79698.0,0.08777773]
[1731252177317,0.22849886,79704.0,79698.0,0.08777773]
[1731252177518,0.062682,79699.0,79698.0,0.08777773]
[1731252177816,0.062682,79699.0,79698.0,0.02509473]
[1731252178026,0.29117786,79704.0,79698.0,0.02509473]
[1731252178313,0.2065132,79704.0,79701.0,0.062681]
[1731252179409,0.1438342,79704.0,79701.0,0.062681]
[1731252179613,0.06268,79702.0,79701.0,0.062681]
[1731252180516,0.062682,79699.0,79698.0,0.02509473]
[1731252180722,0.062682,79699.0,79698.0,0.08777773]
[1731252180912,0.06280809,79699.0,79698.0,0.02509473]
[1731252181811,0.06280809,79699.0,79690.0,0.00010849]
[1731252181812,0.00012609,79699.0,79692.0,0.062688]
[1731252182017,0.3608,79693.0,79692.0,0.062688]
[1731252182411,0.062686,79694.0,79692.0,0.062688]
[1731252183912,0.00012609,79699.0,79694.0,0.062686]
[1731252183913,0.062683,79698.0,79694.0,0.062686]
[1731252184116,0.00012609,79699.0,79694.0,0.062686]
[1731252184309,0.00012609,79699.0,79690.0,0.00010849]
[1731252184511,0.00012609,79699.0,79698.0,0.062683]
[1731252185617,0.00012609,79699.0,79698.0,0.423483]
[1731252185813,0.12608,79713.0,79698.0,0.423483]
[1731252186018,0.062678,79705.0,79702.0,0.06268]
[1731252186210,0.062681,79701.0,79699.0,0.04]
[1731252186417,0.08466466,79700.0,79691.0,0.062688]
[1731252186619,0.14735266,79692.0,79690.0,0.00010849]
[1731252187213,0.062688,79692.0,79690.0,0.00010849]
[1731252187921,0.062684,79697.0,79690.0,0.00010849]
[1731252188719,0.062686,79695.0,79692.0,0.062688]
[1731252190310,0.3608,79698.0,79692.0,0.062688]
[1731252190522,0.062689,79691.0,79690.0,0.00010849]
[1731252191715,0.423489,79691.0,79690.0,0.00010849]
[1731252191916,0.45419959,79691.0,79690.0,0.00010849]
[1731252192215,0.423489,79691.0,79690.0,0.00010849]
[1731252192413,0.44107104,79691.0,79690.0,0.00010849]
[1731252195119,0.44107104,79691.0,79676.0,0.0627]
[1731252195120,0.47178235,79691.0,79676.0,0.0627]
[1731252195316,0.062699,79678.0,79676.0,0.0627]
[1731252196225,0.00010849,79677.0,79676.0,0.0627]
[1731252202323,6.849e-05,79677.0,79676.0,0.0627]
[1731252204520,0.06276849,79677.0,79676.0,0.0627]
[1731252204922,6.849e-05,79677.0,79676.0,0.0627]
[1731252205329,6.849e-05,79677.0,79676.0,0.08780166]
[1731252209431,0.06276849,79677.0,79676.0,0.02510166]
[1731252210332,0.18880849,79677.0,79676.0,0.02510166]
[1731252210528,0.12610849,79677.0,79676.0,0.08780166]
[1731252211430,6.849e-05,79677.0,79676.0,0.08780166]
[1731252212333,6.849e-05,79677.0,79676.0,0.08760166]
[1731252213923,0.06276849,79677.0,79676.0,0.08760166]
[1731252215033,6.849e-05,79677.0,79676.0,0.08760166]
[1731252216926,6.849e-05,79677.0,79676.0,0.02490166]
[1731252217132,0.36086849,79677.0,79676.0,0.02490166]
[1731252217635,6.849e-05,79677.0,79676.0,0.08760166]
[1731252218433,6.849e-05,79677.0,79676.0,0.02490166]
[1731252218628,0.08473315,79677.0,79676.0,0.02490166]
[1731252219339,0.1781468,79677.0,79676.0,0.02490166]
[1731252220727,0.09348214,79677.0,79676.0,0.02490166]
[1731252221137,0.09348214,79677.0,79660.0,0.00188281]
[1731252221429,0.50817666,79661.0,79660.0,0.00188281]
[1731252221636,0.63421666,79661.0,79660.0,0.00188281]
[1731252222131,0.66493759,79661.0,79655.0,0.062716]
[1731252222348,0.062721,79650.0,79631.0,0.3608]
[1731252222632,0.53891119,79650.0,79644.0,0.062725]
[1731252222831,0.15676553,79649.0,79645.0,0.062725]
[1731252223028,0.03072576,79648.0,79638.0,0.3608]
[1731252223241,0.062724,79646.0,79640.0,0.062728]
[1731252223537,0.08466466,79642.0,79638.0,0.3608]
[1731252223737,0.062731,79637.0,79634.0,0.0251149]
[1731252223938,0.08466466,79635.0,79634.0,0.0251149]
[1731252224738,0.12604,79637.0,79635.0,0.062732]
[1731252225236,9.078e-05,79641.0,79640.0,0.062729]
[1731252225841,9.078e-05,79641.0,79640.0,0.423529]
[1731252226934,5.078e-05,79641.0,79640.0,0.423529]
[1731252232336,0.08471544,79641.0,79640.0,0.423529]
[1731252232541,5.078e-05,79641.0,79640.0,0.423529]
[1731252243036,0.062687,79693.0,79650.0,0.06272]
[1731252243037,0.12596,79664.0,79650.0,0.06272]
[1731252243240,0.15295583,79666.0,79665.0,0.062709]
[1731252243436,0.14550074,79666.0,79665.0,0.062709]
[1731252243751,0.00188424,79666.0,79665.0,0.062709]
[1731252244135,0.00197489,79666.0,79665.0,0.062709]
[1731252253449,0.08475531,79666.0,79663.0,0.3608]
[1731252253762,0.06271,79664.0,79663.0,0.3608]
[1731252253956,0.06271,79664.0,79663.0,0.423511]
[1731252254481,0.08466466,79665.0,79655.0,0.36144]
[1731252254754,0.44546466,79656.0,79649.0,0.00188334]
[1731252254957,0.062721,79650.0,79649.0,0.00188334]
[1731252255370,0.14738566,79650.0,79649.0,0.00188334]
[1731252255657,0.062721,79650.0,79649.0,0.00188334]
[1731252256057,0.27330566,79650.0,79649.0,0.00188334]
[1731252257361,0.27330566,79650.0,79634.0,0.0251149]
[1731252257362,0.06273,79638.0,79634.0,0.0251149]
[1731252257557,0.101031,79637.0,79634.0,0.0251149]
[1731252257859,0.101031,79637.0,79634.0,0.0249149]
[1731252259063,0.07592083,79637.0,79634.0,0.0249149]
[1731252259568,0.07588083,79637.0,79634.0,0.0249149]
[1731252259967,0.3608,79640.0,79634.0,0.0249149]
[1731252260170,0.062726,79644.0,79638.0,0.06273]
[1731252260864,0.08466466,79647.0,79638.0,0.06273]
[1731252261066,0.08466466,79647.0,79634.0,0.0249149]
[1731252261067,0.062723,79647.0,79642.0,0.062727]
[1731252261268,0.062724,79646.0,79642.0,0.062727]
[1731252261465,0.3608,79648.0,79635.0,0.0409]
[1731252261466,0.12596,79645.0,79635.0,0.0409]
[1731252261670,0.062726,79644.0,79639.0,0.062729]
[1731252262159,0.062727,79642.0,79639.0,0.062729]
[1731252262468,0.06273,79639.0,79635.0,0.0409]
[1731252263261,0.12596,79645.0,79635.0,0.0409]
[1731252263262,0.062731,79638.0,79635.0,0.0409]
[1731252264959,0.062731,79638.0,79636.0,0.062732]
[1731252265661,0.062726,79644.0,79635.0,0.0409]
[1731252265857,0.062726,79644.0,79641.0,0.062728]
[1731252266459,0.3608,79648.0,79636.0,0.08466466]
[1731252266669,0.06281265,79649.0,79642.0,0.062727]
[1731252266670,0.062723,79647.0,79642.0,0.062727]
[1731252266968,0.062723,79647.0,79638.0,0.3608]
[1731252266969,0.062723,79647.0,79639.0,0.0781]
[1731252267167,0.062724,79646.0,79643.0,0.062726]
[1731252267559,9.065e-05,79649.0,79639.0,0.0781]
[1731252268162,0.08466466,79647.0,79639.0,0.0781]
[1731252268367,0.08466466,79647.0,79644.0,0.062725]
[1731252268564,0.06281265,79649.0,79644.0,0.062725]
[1731252268768,0.062722,79648.0,79644.0,0.062725]
[1731252269668,0.062722,79648.0,79645.0,0.062725]
[1731252269868,9.065e-05,79649.0,79639.0,0.0781]
[1731252270065,9.065e-05,79649.0,79648.0,0.423522]
[1731252270765,0.00188362,79654.0,79653.0,0.062718]
[1731252271074,0.00188362,79654.0,79653.0,0.14738266]
[1731252271571,0.00188362,79654.0,79653.0,0.52402266]
[1731252271762,0.00188362,79654.0,79636.0,0.062731]
[1731252271763,0.08466466,79654.0,79634.0,0.3857149]
[1731252271967,0.06273,79639.0,79634.0,0.4484479]
[1731252272272,0.3608,79645.0,79638.0,0.3608]
[1731252272273,0.423525,79645.0,79638.0,0.3608]
[1731252272659,0.16432,79653.0,79642.0,0.062727]
[1731252273765,0.062721,79650.0,79642.0,0.062727]
[1731252273966,0.14738966,79645.0,79639.0,0.0391]
[1731252274374,0.14738966,79645.0,79643.0,0.02511206]
[1731252276769,0.3608,79644.0,79643.0,0.02511206]
[1731252279773,0.423525,79644.0,79643.0,0.02511206]
[1731252280863,0.5743593,79644.0,79643.0,0.02511206]
[1731252281469,0.6050866,79644.0,79643.0,0.02511206]
[1731252281968,0.5743593,79644.0,79643.0,0.02511206]
[1731252282163,0.6050884,79644.0,79643.0,0.02511206]
[1731252282371,0.6519593,79644.0,79643.0,0.02511206]
[1731252284473,1.09788894,79644.0,79643.0,6e-08]
[1731252284677,1.09788894,79644.0,79616.0,0.1168]
[1731252284678,0.062743,79622.0,79616.0,0.1168]
[1731252284877,0.50820766,79622.0,79616.0,0.1168]
[1731252287281,0.50816766,79622.0,79616.0,0.1168]
[1731252288080,0.50816766,79622.0,79616.0,0.0776]
[1731252289074,0.50816766,79622.0,79617.0,0.062746]
[1731252289276,0.50816766,79622.0,79616.0,0.0776]
[1731252289277,0.01751342,79622.0,79616.0,0.0776]
[1731252289578,0.12576,79622.0,79621.0,0.06462823]
[1731252289775,0.21042466,79622.0,79621.0,0.06462823]
[1731252293370,0.22869605,79622.0,79621.0,0.06462823]
[1731252294881,0.062744,79621.0,79597.0,0.3608]
[1731252295195,0.062755,79607.0,79598.0,0.062762]
[1731252295484,0.188315,79607.0,79598.0,0.062762]
[1731252295671,0.188315,79607.0,79588.0,0.00068]
[1731252295672,0.925955,79607.0,79588.0,0.00068]
[1731252295876,0.08466466,79589.0,79583.0,0.062773]
[1731252296075,0.08466466,79589.0,79584.0,0.3608]
[1731252296382,0.08466466,79589.0,79587.0,0.06277]
[1731252296781,0.14743366,79589.0,79584.0,0.3608]
[1731252297082,0.14743366,79589.0,79584.0,0.423573]
[1731252297282,0.14743366,79589.0,79578.0,0.180977]
[1731252297283,0.08466466,79589.0,79578.0,0.180977]
[1731252297584,0.08466466,79579.0,79578.0,0.479]
[1731252297787,0.08466466,79579.0,79578.0,0.4407]
[1731252297985,0.00010078,79579.0,79577.0,0.02513289]
[1731252298188,0.27300266,79578.0,79577.0,0.02513289]
[1731252300197,0.14744266,79578.0,79577.0,0.02513289]
[1731252300382,0.27300266,79578.0,79577.0,0.02513289]
[1731252304788,0.188338,79578.0,79577.0,0.02513289]
[1731252304985,0.188378,79578.0,79577.0,0.02513289]
[1731252305289,0.062778,79578.0,79577.0,0.02493289]
[1731252305492,0.188378,79578.0,79577.0,0.02493289]
[1731252306394,0.01829677,79579.0,79577.0,0.02493289]
[1731252306594,0.00010078,79579.0,79578.0,0.499378]
[1731252306784,0.00010078,79579.0,79578.0,0.138578]
[1731252307290,0.00010078,79579.0,79578.0,0.499378]
[1731252307598,0.062769,79589.0,79584.0,0.062773]
[1731252307801,0.12564,79594.0,79578.0,0.4366]
[1731252308000,0.36268493,79595.0,79586.0,0.3608]
[1731252308001,0.062768,79590.0,79586.0,0.3608]
[1731252308293,0.062769,79589.0,79586.0,0.3608]
[1731252308487,0.062769,79589.0,79587.0,0.06277]
[1731252308991,0.062769,79589.0,79588.0,0.06277]
[1731252309192,0.01963579,79595.0,79583.0,0.423574]